[Event "Titled Tuesday Blitz January 10 Late 2023"]
[White "Hsu, Li Yang"]
[Black "Pasti, Aron"]
[WhiteFideId "5800080"]
[BlackFideId "785857"]
[WhiteElo "2427"]
[BlackElo "2361"]
[Result "1/2-1/2"]
[Round "10"]
[TimeControl "180+2"]
[Date "2023.01.10"]
[WhiteClock "0:00:07"]
[BlackClock "0:00:07"]

1. Nf3 {[%clk 0:00:00]}  d5 {[%clk 0:00:00]} 2. g3 {[%clk 0:03:00]}  c6 {[%clk 0:02:59]} 3. Bg2 {[%clk 0:03:01]}  Bg4 {[%clk 0:02:58]} 4. O-O {[%clk 0:03:01]}  Nd7 {[%clk 0:02:59]} 5. d4 {[%clk 0:03:01]}  e6 {[%clk 0:02:59]} 6. Nbd2 {[%clk 0:02:58]}  Ngf6 {[%clk 0:02:58]} 7. Re1 {[%clk 0:02:58]}  Be7 {[%clk 0:02:59]} 8. e4 {[%clk 0:02:58]}  dxe4 {[%clk 0:02:58]} 9. Nxe4 {[%clk 0:02:58]}  O-O {[%clk 0:02:58]} 10. c3 {[%clk 0:02:59]}  Nxe4 {[%clk 0:02:56]} 11. Rxe4 {[%clk 0:02:58]}  Nf6 {[%clk 0:02:52]} 12. Re1 {[%clk 0:02:58]}  c5 {[%clk 0:02:53]} 13. Be3 {[%clk 0:02:58]}  cxd4 {[%clk 0:02:53]} 14. Bxd4 {[%clk 0:02:53]}  Nd5 {[%clk 0:02:53]} 15. Qb3 {[%clk 0:02:50]}  Qc8 {[%clk 0:02:54]} 16. Ne5 {[%clk 0:02:45]}  Bf5 {[%clk 0:02:48]} 17. c4 {[%clk 0:02:42]}  Nb6 {[%clk 0:02:33]} 18. Bxb6 {[%clk 0:01:50]}  axb6 {[%clk 0:02:24]} 19. Qxb6 {[%clk 0:01:46]}  Bc5 {[%clk 0:02:23]} 20. Qb5 {[%clk 0:01:47]}  Qc7 {[%clk 0:02:23]} 21. Nd7 {[%clk 0:01:32]}  Ra5 {[%clk 0:02:23]} 22. Qxb7 {[%clk 0:01:26]}  Qxb7 {[%clk 0:02:22]} 23. Bxb7 {[%clk 0:01:25]}  Rb8 {[%clk 0:02:17]} 24. Nxc5 {[%clk 0:01:26]}  Rxc5 {[%clk 0:02:17]} 25. Ba6 {[%clk 0:01:16]}  Rxb2 {[%clk 0:02:16]} 26. a4 {[%clk 0:00:58]}  Bd3 {[%clk 0:02:12]} 27. Red1 {[%clk 0:00:57]}  Rb3 {[%clk 0:02:09]} 28. a5 {[%clk 0:00:50]}  g5 {[%clk 0:02:05]} 29. Rdc1 {[%clk 0:00:39]}  Rb2 {[%clk 0:02:00]} 30. Rc3 {[%clk 0:00:36]}  Be4 {[%clk 0:01:57]} 31. Re3 {[%clk 0:00:31]}  Rxa5 {[%clk 0:01:36]} 32. Rc1 {[%clk 0:00:22]}  Rc2 {[%clk 0:01:30]} 33. Rce1 {[%clk 0:00:17]}  f5 {[%clk 0:01:23]} 34. Bb5 {[%clk 0:00:15]}  Raa2 {[%clk 0:01:20]} 35. Rf1 {[%clk 0:00:14]}  Kf7 {[%clk 0:01:19]} 36. h4 {[%clk 0:00:14]}  h6 {[%clk 0:01:18]} 37. hxg5 {[%clk 0:00:13]}  hxg5 {[%clk 0:01:11]} 38. g4 {[%clk 0:00:13]}  Ra8 {[%clk 0:01:11]} 39. gxf5 {[%clk 0:00:14]}  exf5 {[%clk 0:00:46]} 40. f3 {[%clk 0:00:13]}  Raa2 {[%clk 0:00:42]} 41. Rfe1 {[%clk 0:00:13]}  Rg2+ {[%clk 0:00:39]} 42. Kh1 {[%clk 0:00:07]}  Rh2+ {[%clk 0:00:38]} 43. Kg1 {[%clk 0:00:07]}  Rag2+ {[%clk 0:00:38]} 44. Kf1 {[%clk 0:00:07]}  Rf2+ {[%clk 0:00:18]} 45. Kg1 {[%clk 0:00:07]}  Rhg2+ {[%clk 0:00:18]} 46. Kh1 {[%clk 0:00:07]}  Rh2+ {[%clk 0:00:05]} 47. Kg1 {[%clk 0:00:07]}  Rhg2+ {[%clk 0:00:06]} 48. Kh1 {[%clk 0:00:07]}  Rh2+ {[%clk 0:00:07]} 49. Kg1 {[%clk 0:00:07]} 1/2-1/2


[Site "https://www.chess.com"]

[Event "Titled Tuesday Blitz January 10 Late 2023"]
[White "Novikov, Evgenij"]
[Black "Osmak, Yuliia"]
[WhiteFideId "4125380"]
[BlackFideId "14101602"]
[WhiteElo "2276"]
[BlackElo "2440"]
[Result "1-0"]
[Round "10"]
[TimeControl "180+2"]
[Date "2023.01.10"]
[WhiteClock "0:00:36"]
[BlackClock "0:00:19"]

1. d4 {[%clk 0:00:00]}  Nf6 {[%clk 0:00:00]} 2. c4 {[%clk 0:02:59]}  e6 {[%clk 0:02:56]} 3. Nc3 {[%clk 0:02:59]}  c5 {[%clk 0:02:56]} 4. d5 {[%clk 0:02:59]}  exd5 {[%clk 0:02:56]} 5. cxd5 {[%clk 0:02:59]}  d6 {[%clk 0:02:56]} 6. Nf3 {[%clk 0:02:59]}  g6 {[%clk 0:02:56]} 7. e3 {[%clk 0:03:00]}  Bg7 {[%clk 0:02:56]} 8. Be2 {[%clk 0:03:00]}  O-O {[%clk 0:02:55]} 9. O-O {[%clk 0:03:01]}  a6 {[%clk 0:02:55]} 10. a4 {[%clk 0:03:01]}  Re8 {[%clk 0:02:50]} 11. Re1 {[%clk 0:03:01]}  Nbd7 {[%clk 0:02:49]} 12. Rb1 {[%clk 0:02:52]}  Ne5 {[%clk 0:02:48]} 13. Nxe5 {[%clk 0:02:41]}  Rxe5 {[%clk 0:02:47]} 14. Bf3 {[%clk 0:02:40]}  b5 {[%clk 0:02:47]} 15. axb5 {[%clk 0:02:36]}  axb5 {[%clk 0:02:35]} 16. Nxb5 {[%clk 0:02:26]}  Bf5 {[%clk 0:02:36]} 17. e4 {[%clk 0:02:22]}  Nxe4 {[%clk 0:02:35]} 18. Bf4 {[%clk 0:02:14]}  Nxf2 {[%clk 0:02:33]} 19. Kxf2 {[%clk 0:02:08]}  Rxe1 {[%clk 0:02:25]} 20. Qxe1 {[%clk 0:01:57]}  Bxb1 {[%clk 0:02:22]} 21. Qxb1 {[%clk 0:01:51]}  Rb8 {[%clk 0:02:05]} 22. Be2 {[%clk 0:01:50]}  Qh4+ {[%clk 0:02:05]} 23. Bg3 {[%clk 0:01:41]}  Qb4 {[%clk 0:02:01]} 24. Nxd6 {[%clk 0:01:37]}  Qd4+ {[%clk 0:01:55]} 25. Kf1 {[%clk 0:01:31]}  Rxb2 {[%clk 0:01:48]} 26. Qe4 {[%clk 0:01:26]}  Qf6+ {[%clk 0:01:47]} 27. Qf4 {[%clk 0:01:18]}  h5 {[%clk 0:01:22]} 28. Qxf6 {[%clk 0:01:14]}  Bxf6 {[%clk 0:01:00]} 29. Ne4 {[%clk 0:01:13]}  Bd4 {[%clk 0:01:01]} 30. d6 {[%clk 0:01:12]}  Rb1+ {[%clk 0:01:00]} 31. Be1 {[%clk 0:01:07]}  Kf8 {[%clk 0:00:56]} 32. Bd3 {[%clk 0:01:07]}  Ra1 {[%clk 0:00:51]} 33. Ke2 {[%clk 0:01:01]}  f5 {[%clk 0:00:48]} 34. Ng5 {[%clk 0:00:56]}  Ra2+ {[%clk 0:00:40]} 35. Kf3 {[%clk 0:00:44]}  Ra3 {[%clk 0:00:39]} 36. Ke2 {[%clk 0:00:43]}  Be5 {[%clk 0:00:40]} 37. d7 {[%clk 0:00:43]}  Ke7 {[%clk 0:00:29]} 38. d8=Q+ {[%clk 0:00:38]}  Kxd8 {[%clk 0:00:28]} 39. Nf7+ {[%clk 0:00:37]}  Ke7 {[%clk 0:00:28]} 40. Nxe5 {[%clk 0:00:38]}  Kf6 {[%clk 0:00:28]} 41. Nd7+ {[%clk 0:00:39]}  Ke7 {[%clk 0:00:27]} 42. Nxc5 {[%clk 0:00:38]}  Ra2+ {[%clk 0:00:21]} 43. Bd2 {[%clk 0:00:38]}  f4 {[%clk 0:00:21]} 44. Ne4 {[%clk 0:00:38]}  Ke6 {[%clk 0:00:19]} 45. Bc4+ {[%clk 0:00:36]} 1-0


[Site "https://www.chess.com"]

[Event "Titled Tuesday Blitz January 10 Late 2023"]
[White "Itkis, Boris"]
[Black "Suvorov, Alexander"]
[WhiteFideId "1209167"]
[BlackFideId "12977063"]
[WhiteElo "2329"]
[BlackElo "2338"]
[Result "0-1"]
[Round "10"]
[TimeControl "180+2"]
[Date "2023.01.10"]
[WhiteClock "0:00:02"]
[BlackClock "0:00:21"]

1. c4 {[%clk 0:00:00]}  e5 {[%clk 0:00:00]} 2. Nf3 {[%clk 0:03:00]}  Nc6 {[%clk 0:02:58]} 3. Nc3 {[%clk 0:03:01]}  Bc5 {[%clk 0:02:58]} 4. e3 {[%clk 0:03:01]}  d6 {[%clk 0:02:57]} 5. d4 {[%clk 0:03:00]}  Bb4 {[%clk 0:02:52]} 6. Bd2 {[%clk 0:03:00]}  Nf6 {[%clk 0:02:50]} 7. Qc2 {[%clk 0:02:35]}  O-O {[%clk 0:02:44]} 8. Bd3 {[%clk 0:02:21]}  Re8 {[%clk 0:02:35]} 9. dxe5 {[%clk 0:02:14]}  dxe5 {[%clk 0:02:29]} 10. O-O {[%clk 0:02:13]}  h6 {[%clk 0:02:14]} 11. Ne4 {[%clk 0:02:06]}  Bxd2 {[%clk 0:01:53]} 12. Qxd2 {[%clk 0:02:04]}  Bg4 {[%clk 0:01:50]} 13. Nxf6+ {[%clk 0:01:56]}  Qxf6 {[%clk 0:01:44]} 14. Be4 {[%clk 0:01:41]}  Rad8 {[%clk 0:01:39]} 15. Qc3 {[%clk 0:01:41]}  Bxf3 {[%clk 0:01:39]} 16. Bxf3 {[%clk 0:01:36]}  e4 {[%clk 0:01:37]} 17. Qxf6 {[%clk 0:01:35]}  gxf6 {[%clk 0:01:35]} 18. Bg4 {[%clk 0:01:31]}  Ne5 {[%clk 0:01:36]} 19. Bh5 {[%clk 0:01:28]}  Nxc4 {[%clk 0:01:35]} 20. Rac1 {[%clk 0:01:19]}  Ne5 {[%clk 0:01:33]} 21. Rxc7 {[%clk 0:01:06]}  Rd7 {[%clk 0:01:09]} 22. Rxd7 {[%clk 0:01:04]}  Nxd7 {[%clk 0:01:09]} 23. Rd1 {[%clk 0:00:53]}  Ne5 {[%clk 0:01:10]} 24. h3 {[%clk 0:00:53]}  Rc8 {[%clk 0:01:09]} 25. Rd2 {[%clk 0:00:45]}  Rc1+ {[%clk 0:01:09]} 26. Kh2 {[%clk 0:00:44]}  Kg7 {[%clk 0:01:07]} 27. Kg3 {[%clk 0:00:44]}  a5 {[%clk 0:01:07]} 28. Kf4 {[%clk 0:00:44]}  Rc4 {[%clk 0:01:00]} 29. Rd4 {[%clk 0:00:40]}  Rc2 {[%clk 0:00:53]} 30. Kxe4 {[%clk 0:00:23]}  Rxb2 {[%clk 0:00:50]} 31. f4 {[%clk 0:00:15]}  Ng6 {[%clk 0:00:48]} 32. g4 {[%clk 0:00:14]}  Rxa2 {[%clk 0:00:39]} 33. Rd7 {[%clk 0:00:11]}  b5 {[%clk 0:00:39]} 34. Rb7 {[%clk 0:00:11]}  b4 {[%clk 0:00:38]} 35. Bxg6 {[%clk 0:00:06]}  Kxg6 {[%clk 0:00:38]} 36. h4 {[%clk 0:00:05]}  Rb2 {[%clk 0:00:38]} 37. h5+ {[%clk 0:00:06]}  Kg7 {[%clk 0:00:20]} 38. Ra7 {[%clk 0:00:06]}  Ra2 {[%clk 0:00:20]} 39. Rb7 {[%clk 0:00:06]}  Ra3 {[%clk 0:00:20]} 40. Kd4 {[%clk 0:00:07]}  b3 {[%clk 0:00:21]} 41. Kc3 {[%clk 0:00:05]}  a4 {[%clk 0:00:20]} 42. e4 {[%clk 0:00:05]}  Ra2 {[%clk 0:00:21]} 43. e5 {[%clk 0:00:02]}  fxe5 {[%clk 0:00:21]} 44. fxe5 {[%clk 0:00:03]}  Rc2+ {[%clk 0:00:21]} 45. Kd3 {[%clk 0:00:03]}  Rc6 {[%clk 0:00:21]} 46. Ra7 {[%clk 0:00:03]}  Rb6 {[%clk 0:00:20]} 47. Rxa4 {[%clk 0:00:02]}  b2 {[%clk 0:00:21]} 0-1


[Site "https://www.chess.com"]

[Event "Titled Tuesday Blitz January 10 Late 2023"]
[White "Tyagi, Kushan"]
[Black "Haszon, David"]
[WhiteFideId "2040069"]
[BlackFideId "733610"]
[WhiteElo "2060"]
[BlackElo "2264"]
[Result "1/2-1/2"]
[Round "10"]
[TimeControl "180+2"]
[Date "2023.01.10"]
[WhiteClock "0:01:16"]
[BlackClock "0:00:44"]

1. d4 {[%clk 0:00:00]}  Nf6 {[%clk 0:00:00]} 2. c4 {[%clk 0:03:00]}  c5 {[%clk 0:02:59]} 3. d5 {[%clk 0:03:00]}  b5 {[%clk 0:02:59]} 4. cxb5 {[%clk 0:03:00]}  a6 {[%clk 0:02:59]} 5. f3 {[%clk 0:02:59]}  d6 {[%clk 0:02:59]} 6. e4 {[%clk 0:02:59]}  g6 {[%clk 0:02:57]} 7. Na3 {[%clk 0:02:57]}  Bg7 {[%clk 0:02:56]} 8. Ne2 {[%clk 0:02:52]}  axb5 {[%clk 0:02:56]} 9. Nxb5 {[%clk 0:02:52]}  Qa5+ {[%clk 0:02:52]} 10. Nec3 {[%clk 0:02:51]}  O-O {[%clk 0:02:50]} 11. Be2 {[%clk 0:02:51]}  Ba6 {[%clk 0:02:48]} 12. O-O {[%clk 0:02:51]}  Nbd7 {[%clk 0:02:33]} 13. Qc2 {[%clk 0:02:46]}  Rfb8 {[%clk 0:02:27]} 14. a4 {[%clk 0:02:35]}  Ne8 {[%clk 0:02:24]} 15. Rb1 {[%clk 0:02:33]}  Bxb5 {[%clk 0:01:47]} 16. Bxb5 {[%clk 0:02:14]}  Nb6 {[%clk 0:01:36]} 17. Bd2 {[%clk 0:02:08]}  Bd4+ {[%clk 0:01:26]} 18. Kh1 {[%clk 0:01:49]}  Bxc3 {[%clk 0:01:15]} 19. Bxc3 {[%clk 0:01:48]}  Qa7 {[%clk 0:00:51]} 20. Bc6 {[%clk 0:01:45]}  Nc7 {[%clk 0:00:52]} 21. Qd2 {[%clk 0:01:45]}  Nc4 {[%clk 0:00:47]} 22. Qh6 {[%clk 0:01:38]}  f6 {[%clk 0:00:47]} 23. h4 {[%clk 0:01:34]}  Ne8 {[%clk 0:00:46]} 24. h5 {[%clk 0:01:19]}  g5 {[%clk 0:00:46]} 25. f4 {[%clk 0:01:16]}  Ne3 {[%clk 0:00:44]} 1/2-1/2


[Site "https://www.chess.com"]

[Event "Titled Tuesday Blitz January 10 Late 2023"]
[White "Klukin, Kirill"]
[Black "Fernandez Garcia, Gumersindo"]
[WhiteFideId "24199273"]
[BlackFideId "24516740"]
[WhiteElo "2390"]
[BlackElo "2160"]
[Result "1-0"]
[Round "10"]
[TimeControl "180+2"]
[Date "2023.01.10"]
[WhiteClock "0:02:44"]
[BlackClock "0:01:41"]

1. f4 {[%clk 0:00:00]}  Nh6 {[%clk 0:00:00]} 2. Nf3 {[%clk 0:03:00]}  g6 {[%clk 0:02:55]} 3. g3 {[%clk 0:03:00]}  d5 {[%clk 0:02:54]} 4. Bg2 {[%clk 0:03:00]}  Bg7 {[%clk 0:02:54]} 5. O-O {[%clk 0:03:01]}  c6 {[%clk 0:02:55]} 6. d3 {[%clk 0:03:01]}  O-O {[%clk 0:02:53]} 7. e4 {[%clk 0:03:01]}  Bg4 {[%clk 0:02:53]} 8. Nc3 {[%clk 0:03:02]}  Bxc3 {[%clk 0:02:52]} 9. bxc3 {[%clk 0:03:01]}  dxe4 {[%clk 0:02:44]} 10. dxe4 {[%clk 0:03:01]}  Qxd1 {[%clk 0:02:44]} 11. Rxd1 {[%clk 0:03:01]}  Na6 {[%clk 0:02:43]} 12. Be3 {[%clk 0:03:02]}  b6 {[%clk 0:02:42]} 13. h3 {[%clk 0:03:01]}  Bxf3 {[%clk 0:02:31]} 14. Bxf3 {[%clk 0:03:00]}  Rad8 {[%clk 0:02:31]} 15. e5 {[%clk 0:03:01]}  Nf5 {[%clk 0:02:30]} 16. Bf2 {[%clk 0:02:58]}  c5 {[%clk 0:02:25]} 17. a4 {[%clk 0:02:58]}  Nb8 {[%clk 0:02:22]} 18. a5 {[%clk 0:02:52]}  Rxd1+ {[%clk 0:01:43]} 19. Rxd1 {[%clk 0:02:49]}  Ng7 {[%clk 0:01:42]} 20. axb6 {[%clk 0:02:47]}  axb6 {[%clk 0:01:42]} 21. Rb1 {[%clk 0:02:46]}  Nd7 {[%clk 0:01:43]} 22. Bc6 {[%clk 0:02:44]}  Rd8 {[%clk 0:01:41]} 23. Rd1 {[%clk 0:02:44]} 1-0


[Site "https://www.chess.com"]

[Event "Titled Tuesday Blitz January 10 Late 2023"]
[White "Souleidis, Georgios"]
[Black "Gasparyan, David"]
[WhiteFideId "4206827"]
[BlackFideId "13311980"]
[WhiteElo "2419"]
[BlackElo "2142"]
[Result "0-1"]
[Round "10"]
[TimeControl "180+2"]
[Date "2023.01.10"]
[WhiteClock "0:00:04"]
[BlackClock "0:00:10"]

1. e4 {[%clk 0:00:00]}  c5 {[%clk 0:00:00]} 2. Nf3 {[%clk 0:02:59]}  e6 {[%clk 0:03:00]} 3. g3 {[%clk 0:02:59]}  Nc6 {[%clk 0:02:59]} 4. Bg2 {[%clk 0:02:58]}  d5 {[%clk 0:02:59]} 5. exd5 {[%clk 0:02:58]}  exd5 {[%clk 0:02:59]} 6. d4 {[%clk 0:02:54]}  c4 {[%clk 0:03:00]} 7. O-O {[%clk 0:02:55]}  Nf6 {[%clk 0:02:50]} 8. Re1+ {[%clk 0:02:54]}  Be7 {[%clk 0:02:51]} 9. b3 {[%clk 0:02:53]}  cxb3 {[%clk 0:02:51]} 10. axb3 {[%clk 0:02:47]}  O-O {[%clk 0:02:38]} 11. Ne5 {[%clk 0:02:47]}  Bf5 {[%clk 0:02:39]} 12. Nxc6 {[%clk 0:02:43]}  bxc6 {[%clk 0:02:37]} 13. Nc3 {[%clk 0:02:24]}  Bb4 {[%clk 0:02:38]} 14. Bd2 {[%clk 0:02:23]}  a5 {[%clk 0:02:33]} 15. Na4 {[%clk 0:02:22]}  Ne4 {[%clk 0:02:28]} 16. c3 {[%clk 0:02:20]}  Bd6 {[%clk 0:02:23]} 17. Be3 {[%clk 0:02:00]}  Qf6 {[%clk 0:02:21]} 18. f3 {[%clk 0:01:59]}  Ng5 {[%clk 0:02:14]} 19. Qd2 {[%clk 0:01:58]}  Nh3+ {[%clk 0:02:11]} 20. Kh1 {[%clk 0:01:50]}  h5 {[%clk 0:02:07]} 21. Nc5 {[%clk 0:01:46]}  Qg6 {[%clk 0:02:02]} 22. Nb7 {[%clk 0:01:41]}  Bc7 {[%clk 0:01:56]} 23. Nc5 {[%clk 0:01:26]}  Rfe8 {[%clk 0:01:55]} 24. Bf2 {[%clk 0:01:11]}  Ng5 {[%clk 0:01:54]} 25. Rxe8+ {[%clk 0:00:51]}  Rxe8 {[%clk 0:01:39]} 26. Re1 {[%clk 0:00:42]}  Ra8 {[%clk 0:01:38]} 27. h4 {[%clk 0:00:42]}  Nh3 {[%clk 0:01:12]} 28. Bxh3 {[%clk 0:00:32]}  Bxh3 {[%clk 0:00:49]} 29. Qg5 {[%clk 0:00:26]}  Qc2 {[%clk 0:00:48]} 30. Qe3 {[%clk 0:00:26]}  Bxg3 {[%clk 0:00:44]} 31. Re2 {[%clk 0:00:20]}  Bxf2 {[%clk 0:00:43]} 32. Rxf2 {[%clk 0:00:13]}  Qg6 {[%clk 0:00:35]} 33. Qg5 {[%clk 0:00:09]}  Qb1+ {[%clk 0:00:28]} 34. Kh2 {[%clk 0:00:06]}  Qe1 {[%clk 0:00:22]} 35. Qg1 {[%clk 0:00:06]}  Qxg1+ {[%clk 0:00:19]} 36. Kxg1 {[%clk 0:00:05]}  Bf5 {[%clk 0:00:16]} 37. Re2 {[%clk 0:00:06]}  Kf8 {[%clk 0:00:16]} 38. Re5 {[%clk 0:00:06]}  g6 {[%clk 0:00:15]} 39. Kf2 {[%clk 0:00:06]}  Rb8 {[%clk 0:00:15]} 40. Re1 {[%clk 0:00:06]}  Kg7 {[%clk 0:00:15]} 41. Ra1 {[%clk 0:00:07]}  Rb5 {[%clk 0:00:14]} 42. Ke3 {[%clk 0:00:07]}  Kf6 {[%clk 0:00:14]} 43. Kf4 {[%clk 0:00:07]}  Kg7 {[%clk 0:00:13]} 44. Ra3 {[%clk 0:00:07]}  f6 {[%clk 0:00:11]} 45. Na6 {[%clk 0:00:07]}  Bc2 {[%clk 0:00:11]} 46. Nc5 {[%clk 0:00:06]}  Kh6 {[%clk 0:00:11]} 47. Ke3 {[%clk 0:00:06]}  g5 {[%clk 0:00:10]} 48. Kd2 {[%clk 0:00:06]}  Bf5 {[%clk 0:00:11]} 49. hxg5+ {[%clk 0:00:06]}  fxg5 {[%clk 0:00:10]} 50. Ke3 {[%clk 0:00:06]}  h4 {[%clk 0:00:11]} 51. Ra1 {[%clk 0:00:07]}  Kh5 {[%clk 0:00:11]} 52. Kf2 {[%clk 0:00:07]}  Bc2 {[%clk 0:00:11]} 53. Ra3 {[%clk 0:00:08]}  g4 {[%clk 0:00:11]} 54. fxg4+ {[%clk 0:00:07]}  Kxg4 {[%clk 0:00:10]} 55. Kg2 {[%clk 0:00:08]}  h3+ {[%clk 0:00:11]} 56. Kh2 {[%clk 0:00:08]}  Rb8 {[%clk 0:00:12]} 57. Ra1 {[%clk 0:00:09]}  Bxb3 {[%clk 0:00:12]} 58. Rg1+ {[%clk 0:00:08]}  Kh4 {[%clk 0:00:12]} 59. Ne6 {[%clk 0:00:08]}  Bc2 {[%clk 0:00:12]} 60. Nf4 {[%clk 0:00:09]}  Bf5 {[%clk 0:00:12]} 61. Ne2 {[%clk 0:00:09]}  Rf8 {[%clk 0:00:11]} 62. Ng3 {[%clk 0:00:07]}  Bg4 {[%clk 0:00:10]} 63. Nh1 {[%clk 0:00:07]}  a4 {[%clk 0:00:10]} 64. Ra1 {[%clk 0:00:04]}  Re8 {[%clk 0:00:10]} 0-1


[Site "https://www.chess.com"]

[Event "Titled Tuesday Blitz January 10 Late 2023"]
[White "Adewumi, Tanitoluwa"]
[Black "Reprintsev, Alexander"]
[WhiteFideId "30966396"]
[BlackFideId "14100541"]
[WhiteElo "2283"]
[BlackElo "2253"]
[Result "0-1"]
[Round "10"]
[TimeControl "180+2"]
[Date "2023.01.10"]
[WhiteClock "0:00:02"]
[BlackClock "0:00:38"]

1. e4 {[%clk 0:00:00]}  d5 {[%clk 0:00:00]} 2. exd5 {[%clk 0:03:00]}  Qxd5 {[%clk 0:02:59]} 3. Nc3 {[%clk 0:02:58]}  Qa5 {[%clk 0:03:00]} 4. d4 {[%clk 0:02:55]}  Nf6 {[%clk 0:02:59]} 5. Nf3 {[%clk 0:02:51]}  Nc6 {[%clk 0:02:59]} 6. Bd2 {[%clk 0:02:46]}  Bg4 {[%clk 0:02:58]} 7. Nb5 {[%clk 0:02:40]}  Qb6 {[%clk 0:02:51]} 8. c4 {[%clk 0:02:28]}  Bxf3 {[%clk 0:02:51]} 9. Qxf3 {[%clk 0:02:22]}  Nxd4 {[%clk 0:02:48]} 10. Nxd4 {[%clk 0:02:16]}  Qxd4 {[%clk 0:02:48]} 11. Qxb7 {[%clk 0:02:15]}  Qe4+ {[%clk 0:02:49]} 12. Qxe4 {[%clk 0:02:07]}  Nxe4 {[%clk 0:02:49]} 13. Ba5 {[%clk 0:02:06]}  O-O-O {[%clk 0:02:50]} 14. Be2 {[%clk 0:02:01]}  e6 {[%clk 0:02:47]} 15. O-O {[%clk 0:01:52]}  Bc5 {[%clk 0:02:44]} 16. g3 {[%clk 0:01:47]}  Bb6 {[%clk 0:02:43]} 17. Bxb6 {[%clk 0:01:30]}  axb6 {[%clk 0:02:37]} 18. Rfd1 {[%clk 0:01:25]}  Nd2 {[%clk 0:02:31]} 19. f3 {[%clk 0:01:23]}  Rd4 {[%clk 0:02:21]} 20. Kf2 {[%clk 0:01:05]}  Rhd8 {[%clk 0:02:20]} 21. Rac1 {[%clk 0:01:04]}  e5 {[%clk 0:02:20]} 22. Ke1 {[%clk 0:01:01]}  e4 {[%clk 0:02:12]} 23. f4 {[%clk 0:00:51]}  f5 {[%clk 0:02:01]} 24. Kf2 {[%clk 0:00:51]}  c5 {[%clk 0:01:55]} 25. b3 {[%clk 0:00:36]}  Kc7 {[%clk 0:01:26]} 26. Ke3 {[%clk 0:00:25]}  h6 {[%clk 0:01:11]} 27. g4 {[%clk 0:00:15]}  fxg4 {[%clk 0:01:10]} 28. Bxg4 {[%clk 0:00:13]}  Rd3+ {[%clk 0:01:01]} 29. Ke2 {[%clk 0:00:13]}  Nf3 {[%clk 0:01:01]} 30. Rxd3 {[%clk 0:00:12]}  Rxd3 {[%clk 0:00:47]} 31. h3 {[%clk 0:00:07]}  Nd4+ {[%clk 0:00:47]} 32. Ke1 {[%clk 0:00:02]}  h5 {[%clk 0:00:46]} 33. Bxh5 {[%clk 0:00:02]}  Rxh3 {[%clk 0:00:38]} 34. Be2 {[%clk 0:00:02]}  Re3 {[%clk 0:00:38]} 0-1


[Site "https://www.chess.com"]

[Event "Titled Tuesday Blitz January 10 Late 2023"]
[White "TheKnightOfBosnia"]
[Black "Goncalves, Davi Sulzbacher"]
[BlackFideId "2154510"]
[WhiteElo "2537"]
[BlackElo "2282"]
[Result "1-0"]
[Round "10"]
[TimeControl "180+2"]
[Date "2023.01.10"]
[WhiteClock "0:01:37"]
[BlackClock "0:00:11"]

1. e4 {[%clk 0:00:00]}  e5 {[%clk 0:00:00]} 2. Nf3 {[%clk 0:03:00]}  Qe7 {[%clk 0:02:56]} 3. Nc3 {[%clk 0:03:00]}  c6 {[%clk 0:02:55]} 4. d4 {[%clk 0:02:57]}  d6 {[%clk 0:02:55]} 5. Bd3 {[%clk 0:02:55]}  g6 {[%clk 0:02:54]} 6. h3 {[%clk 0:02:52]}  Bg7 {[%clk 0:02:52]} 7. dxe5 {[%clk 0:02:52]}  dxe5 {[%clk 0:02:52]} 8. O-O {[%clk 0:02:53]}  Nh6 {[%clk 0:02:51]} 9. Ne2 {[%clk 0:02:52]}  f6 {[%clk 0:02:48]} 10. a4 {[%clk 0:02:49]}  Be6 {[%clk 0:02:46]} 11. Be3 {[%clk 0:02:48]}  c5 {[%clk 0:02:27]} 12. Bb5+ {[%clk 0:02:44]}  Nc6 {[%clk 0:02:16]} 13. Nc3 {[%clk 0:02:41]}  O-O {[%clk 0:02:15]} 14. Nd5 {[%clk 0:02:39]}  Qd7 {[%clk 0:02:10]} 15. c3 {[%clk 0:02:38]}  Rad8 {[%clk 0:01:50]} 16. Bxc5 {[%clk 0:02:37]}  Rfe8 {[%clk 0:01:42]} 17. Bxa7 {[%clk 0:02:29]}  Nf7 {[%clk 0:01:33]} 18. Bb6 {[%clk 0:02:25]}  Rc8 {[%clk 0:00:22]} 19. Be3 {[%clk 0:02:22]}  Qd8 {[%clk 0:00:21]} 20. Nb6 {[%clk 0:01:59]}  Rb8 {[%clk 0:00:17]} 21. Qxd8 {[%clk 0:01:57]}  Rexd8 {[%clk 0:00:11]} 22. Rfd1 {[%clk 0:01:54]}  Nd6 {[%clk 0:00:11]} 23. Bxc6 {[%clk 0:01:54]}  bxc6 {[%clk 0:00:11]} 24. a5 {[%clk 0:01:40]}  Bc4 {[%clk 0:00:11]} 25. Rxd6 {[%clk 0:01:37]} 1-0


[Site "https://www.chess.com"]

[Event "Titled Tuesday Blitz January 10 Late 2023"]
[White "Lacasa Diaz, Jose Antonio"]
[Black "Rodriguez Fontecha, Marcos"]
[WhiteFideId "2203375"]
[BlackFideId "2256576"]
[WhiteElo "2359"]
[BlackElo "2309"]
[Result "0-1"]
[Round "10"]
[TimeControl "180+2"]
[Date "2023.01.10"]
[WhiteClock "0:00:38"]
[BlackClock "0:00:44"]

1. e4 {[%clk 0:00:00]}  e6 {[%clk 0:00:00]} 2. d4 {[%clk 0:03:00]}  d5 {[%clk 0:02:59]} 3. e5 {[%clk 0:03:00]}  c5 {[%clk 0:02:58]} 4. c3 {[%clk 0:03:01]}  Nc6 {[%clk 0:02:57]} 5. Nf3 {[%clk 0:03:01]}  Qb6 {[%clk 0:02:58]} 6. a3 {[%clk 0:03:02]}  f6 {[%clk 0:02:57]} 7. Bd3 {[%clk 0:03:01]}  fxe5 {[%clk 0:02:55]} 8. dxe5 {[%clk 0:02:57]}  g6 {[%clk 0:02:50]} 9. O-O {[%clk 0:02:53]}  Bg7 {[%clk 0:02:50]} 10. Re1 {[%clk 0:02:51]}  Nge7 {[%clk 0:02:50]} 11. c4 {[%clk 0:02:47]}  O-O {[%clk 0:02:51]} 12. Nc3 {[%clk 0:02:39]}  Nd4 {[%clk 0:02:40]} 13. Nxd4 {[%clk 0:02:39]}  cxd4 {[%clk 0:02:22]} 14. Nb5 {[%clk 0:02:31]}  Nf5 {[%clk 0:02:23]} 15. Bf4 {[%clk 0:02:28]}  Bd7 {[%clk 0:02:05]} 16. c5 {[%clk 0:02:09]}  Qxc5 {[%clk 0:01:50]} 17. Rc1 {[%clk 0:02:05]}  Qb6 {[%clk 0:01:42]} 18. Qe2 {[%clk 0:02:02]}  a6 {[%clk 0:01:43]} 19. Nd6 {[%clk 0:01:37]}  Nxd6 {[%clk 0:01:35]} 20. exd6 {[%clk 0:01:14]}  Rxf4 {[%clk 0:01:33]} 21. Rc7 {[%clk 0:01:14]}  Qxd6 {[%clk 0:01:33]} 22. Rxb7 {[%clk 0:01:14]}  e5 {[%clk 0:01:28]} 23. g3 {[%clk 0:01:14]}  Rff8 {[%clk 0:01:19]} 24. Rc1 {[%clk 0:01:08]}  Rac8 {[%clk 0:01:17]} 25. Rxc8 {[%clk 0:01:08]}  Bxc8 {[%clk 0:01:00]} 26. Ra7 {[%clk 0:01:05]}  e4 {[%clk 0:01:00]} 27. Bxa6 {[%clk 0:01:02]}  d3 {[%clk 0:00:58]} 28. Bxd3 {[%clk 0:01:01]}  exd3 {[%clk 0:00:57]} 29. Qxd3 {[%clk 0:00:53]}  Bf5 {[%clk 0:00:56]} 30. Qe3 {[%clk 0:00:54]}  d4 {[%clk 0:00:55]} 31. Qb3+ {[%clk 0:00:44]}  Be6 {[%clk 0:00:51]} 32. Qb7 {[%clk 0:00:41]}  Bf7 {[%clk 0:00:50]} 33. Ra6 {[%clk 0:00:40]}  Qd5 {[%clk 0:00:49]} 34. Qxd5 {[%clk 0:00:38]}  Bxd5 {[%clk 0:00:48]} 35. Rd6 {[%clk 0:00:37]}  Bf3 {[%clk 0:00:47]} 36. b4 {[%clk 0:00:38]}  Rc8 {[%clk 0:00:44]} 0-1


[Site "https://www.chess.com"]